fUST/lending_fUST_20240520
["ID","MTS","AMOUNT","RATE_DAILY","PERIOD"]
[327548164,1716216640890,-370.96178906,0.00019178,2]
[327548165,1716216640900,-180.0,0.00019178,2]
[327548166,1716216640909,-500.0,0.00019178,2]
[327548167,1716216640919,-500.0,0.00019178,2]
[327548168,1716216640928,-400.0,0.00019178,2]
[327548169,1716216640939,-546.5,0.00019178,2]
[327548170,1716216640949,-420.5,0.00019178,2]
[327548171,1716216640958,-2000.0,0.000199,2]
[327548172,1716216640970,-24740.47771176,0.0002,2]
[327548173,1716216641029,-9484.94952497,0.0002,2]
[327548174,1716216641056,-2469.90625008,0.0002,2]
[327548175,1716216641077,-471.46515258,0.00020903,2]
[327548176,1716216641105,-163.29500152,0.00020903,2]
[327548177,1716216641137,-6866.38454287,0.00020907,3]
[327548178,1716216641148,-10160.20237028,0.00020908,2]
[327548179,1716216641161,-156.92939147,0.00020908,2]
[327548180,1716216641171,-264.74615518,0.00020908,2]
[327548181,1716216641181,-218.17340369,0.00020908,2]
[327548182,1716216641191,-160.61948739,0.00020908,2]
[327548183,1716216641202,-339.04179012,0.00020908,2]
[327548184,1716216641211,-158.28666304,0.00020908,2]
[327548185,1716216641220,-2111.80644308,0.00020908,2]
[327548186,1716216641232,-154.98843811,0.00020908,2]
[327548187,1716216641242,-155.21473538,0.00020908,2]
[327548188,1716216641251,-10692.41310535,0.00020908,2]
[327548189,1716216641260,-154.921787,0.00020908,2]
[327548190,1716216641270,-173.25833644,0.00020908,2]
[327548191,1716216641279,-236.30330218,0.00020908,2]
[327548192,1716216641289,-177.85748747,0.00020908,2]
[327548193,1716216641298,-897.56846226,0.00020908,2]
[327548194,1716216641308,-155.02234896,0.00020908,2]
[327548195,1716216641318,-741.28984459,0.00020908,2]
[327548196,1716216641328,-312.67295473,0.00020908,2]
[327548197,1716216641338,-1337.89685017,0.00020912,2]
[327548198,1716216641348,-513.4844886,0.00020912,2]
[327548199,1716216641359,-177.40182637,0.00020912,2]
[327548200,1716216641368,-3353.59347286,0.00020912,2]
[327548201,1716216641381,-335.13,0.00020912,2]
[327548223,1716216643551,-12048.13857542,0.00016249,2]
[327548224,1716216643562,-2546.66216256,0.00020912,2]
[327548225,1716216643572,-26202.69680345,0.00020912,2]
[327548226,1716216643582,-1930.45938495,0.000229,2]
[327548227,1716216643592,-495.0,0.00024257,2]
[327548228,1716216643602,-162.916443,0.00024384,2]
[327548229,1716216643611,-182.93086361,0.00025,2]
[327548230,1716216643621,-12322.45852523,0.00025,2]
[327548231,1716216643630,-1000.0,0.00025,10]
[327548232,1716216643641,-1000.0,0.00026,11]
[327548233,1716216643650,-760.11966554,0.0002651,2]
[327548234,1716216643659,-634.13831502,0.00026947,2]
[327548235,1716216643670,-1930.45938495,0.000279,2]
[327548236,1716216643679,-1000.0,0.00028,12]
[327548237,1716216643688,-12069.69118517,0.00029,30]
[327548238,1716216643698,-1000.0,0.00029,29]
[327548239,1716216643707,-464.09985769,0.0003,30]
[327548240,1716216643717,-3440.52121019,0.0003,2]
[327548241,1716216643726,-1000.0,0.0003,30]
[327548242,1716216643735,-162.916443,0.00030639,2]
[327548243,1716216643744,-1000.0,0.00031,31]
[327548244,1716216643754,-1000.0,0.00032,32]
[327548245,1716216643764,-250.40163779,0.00032613,7]
[327548246,1716216643774,-1930.45938495,0.000329,2]
[327548247,1716216643784,-1000.0,0.00033,33]
[327548248,1716216643794,-250.40163779,0.00033399,7]
[327548249,1716216643803,-571.0,0.00033882,12]
[327548250,1716216643813,-60972.67582119,0.000339,5]
[327548251,1716216643822,-55199.79636489,0.00034,2]
[327548279,1716217033644,500.0,0.00016,2]
[327548280,1716217048466,500.0,0.00016,2]
[327548281,1716217067211,487.0,0.00016,2]
[327548306,1716217074770,487.0,0.00016,2]
[327548334,1716217419241,610.16,0.00010959,2]
[327548335,1716217545876,-178.7780661,0.00016254,2]
[327548336,1716217545899,-4401.0419339,0.00017775,2]
[327548342,1716217626226,1897.98260865,9.999e-05,2]
[327548343,1716217647802,-1104.46928518,0.00017618,2]
[327548344,1716217647826,-370.79071482,0.00017619,2]
[327548345,1716217677751,1885.8334935,9.999e-05,2]
[327548346,1716217683708,-1565.37,0.00017619,2]
[327548347,1716217685055,249.72229401,9.9e-05,2]
[327548348,1716217737278,19252.21879879,9.9e-05,2]
[327548349,1716217748174,-163.187949,0.00016645,2]
[327548350,1716217755272,262.6580209,9.9e-05,2]
[327548351,1716217755295,9630.70574683,9.9e-05,2]
[327548384,1716217834068,-2239.0027579,0.00016643,2]
[327548385,1716217834079,-12048.13857542,0.00017611,2]
[327548386,1716217834088,-3063.09240567,0.00017611,2]
[327548387,1716217834099,-11056.52493755,0.00017612,2]
[327548388,1716217834110,-2597.95193588,0.00017613,2]
[327548390,1716217834119,-54022.61273865,0.00017613,2]
[327548462,1716217840732,-2114.91734672,0.00017611,2]
[327548463,1716217840742,-5389.38148036,0.00017613,2]
[327548464,1716217840752,-476.48513905,0.00017617,2]
[327548465,1716217840762,-1974.65577673,0.00017621,2]
[327548466,1716217840772,-24900.0,0.00017721,2]
[327548467,1716217840781,-483.35351486,0.00017775,2]
[327548468,1716217840791,-2464.37770425,0.00017777,2]
[327548469,1716217840802,-10510.59464911,0.00017878,2]
[327548470,1716217840812,-1349.57797882,0.00017879,2]
[327548471,1716217840821,-1339.18572372,0.00018876,2]
[327548472,1716217840830,-7895.65151907,0.00018884,2]
[327548473,1716217840840,-487.4700409,0.00019134,2]
[327548474,1716217840849,-448.5,0.00019178,2]
[327548475,1716217840858,-394.5,0.00019178,2]
[327548476,1716217840868,-305.80911286,0.00019178,2]
[327548478,1716217840877,-214.13676692,0.00019178,2]
[327548482,1716217841021,-492.86440031,0.00019893,2]
[327548483,1716217841031,-909.64823199,0.00019893,2]
[327548484,1716217841041,-690.19911136,0.00019893,2]
[327548485,1716217841051,-719.96474571,0.00019893,2]
[327548486,1716217841060,-528.43613852,0.00019894,2]
[327548487,1716217841069,-1581.42130168,0.00019894,2]
[327548488,1716217841079,-818.31964662,0.00019894,2]
[327548489,1716217841088,-154.82968734,0.00019997,2]
[327548490,1716217841098,-658.15339953,0.00019997,2]
[327548491,1716217841107,-1084.51741713,0.00019997,2]
[327548492,1716217841121,-411.85888721,0.00019997,2]
[327548493,1716217841130,-249.72229401,0.00019998,2]
[327548494,1716217841139,-221.34983062,0.00019998,2]
[327548495,1716217841148,-285.03925166,0.00019998,2]
[327548496,1716217841158,-9561.24585473,0.00019998,2]
[327548497,1716217841167,-275.16677138,0.00019999,2]
[327548498,1716217841177,-36695.33348681,0.0002,2]
[327548499,1716217841186,-1565.36747024,0.0002,2]
[327548500,1716217841196,-391.93504605,0.00020912,2]
[327548501,1716217841206,-160.88358492,0.00021,2]
[327548502,1716217841215,-162.916443,0.00024384,2]
[327548503,1716217841224,-3433.19227143,0.00024639,3]
[327548504,1716217841233,-1974.65577673,0.00024639,2]
[327548505,1716217841243,-634.82909505,0.00026944,2]
[327548506,1716217841252,-12069.69118517,0.00029,30]
[327548507,1716217841261,-464.09985769,0.0003,30]
[327548508,1716217841271,-162.916443,0.00031421,2]
[327548509,1716217841280,-1974.65577673,0.00031658,2]
[327548510,1716217841290,-233.70819527,0.00032648,7]
[327548511,1716217841299,-233.70819527,0.0003353,7]
[327548512,1716217841309,-469.45342164,0.00033817,2]
[327548513,1716217841319,-14064.52659471,0.00034,2]
[327548514,1716217841328,-1000.0,0.00034,34]
[327548515,1716217841337,-1021.2740228,0.00034,4]
[327548516,1716217841347,-16556.08631029,0.00034,7]
[327548517,1716217841357,-222.6935186,0.00034,4]
[327548518,1716217841367,-285.71224732,0.00034,2]
[327548519,1716217841376,-7334.05437732,0.00034,4]
[327548520,1716217841386,-363.0274328,0.00034,2]
[327548521,1716217841396,-154.81422293,0.00034,2]
[327548522,1716217841406,-214.0,0.00034,12]
[327548523,1716217841416,-233.70819527,0.00034134,7]
[327548524,1716217841425,-233.70819527,0.00034194,7]
[327548525,1716217841434,-233.70819527,0.00034334,7]
[327548526,1716217841443,-231.0,0.0003457,13]
[327548527,1716217841453,-886.41112912,0.00035,2]
[327548528,1716217841463,-2049.28794932,0.00035,4]
[327548529,1716217841472,-1000.0,0.00035,35]
[327548530,1716217841481,-1331.73525103,0.00035,7]
[327548531,1716217841490,-1331.86827823,0.00035,7]
[327548532,1716217841499,-233.70819527,0.00035575,7]
[327548533,1716217841509,-24252.05,0.00035616,3]
[327548534,1716217841519,-20210.04,0.00035616,3]
[327548535,1716217841528,-233.70819527,0.00035768,7]
[327548536,1716217841538,-233.70819527,0.00035795,7]
[327548537,1716217841548,-1000.0,0.00036,36]
[327548538,1716217841557,-233.70819527,0.00036614,7]
[327548539,1716217841567,-233.70819527,0.00036638,7]
[327548540,1716217841577,-233.70819527,0.0003676,7]
[327548541,1716217841590,-1707.76234616,0.00037,2]
[327548542,1716217841600,-1000.0,0.00037,37]
[327548543,1716217841612,-1331.73525103,0.000371,7]
[327548544,1716217841621,-1331.86827823,0.000371,7]
[327548545,1716217841631,-171.0,0.0003721,34]
[327548546,1716217841642,-233.70819527,0.00037292,7]
[327548547,1716217841652,-1000.0,0.00038,38]
[327548548,1716217841661,-5483.70491813,0.0003825,2]
[327548549,1716217841674,-233.70819527,0.00038345,7]
[327548550,1716217841684,-233.70819527,0.00038393,7]
[327548551,1716217841693,-162.916443,0.00038459,2]
[327548552,1716217841703,-1974.65577673,0.00038676,2]
[327548553,1716217841712,-1000.0,0.00039,39]
[327548554,1716217841721,-359.21305885,0.000392,11]
[327548555,1716217841767,-1093.58903319,0.000392,11]
[327548556,1716217841776,-1452.94721261,0.000392,11]
[327548557,1716217841786,-233.70819527,0.00039887,7]
[327548558,1716217841797,-262.27515122,0.0004,15]
[327548559,1716217841808,-1000.0,0.0004,40]
[327548560,1716217841818,-420.0,0.0004,120]
[327548561,1716217841828,-1194.0,0.0004,30]
[327548562,1716217841838,-1000.0,0.0004,30]
[327548563,1716217841848,-886.88727196,0.0004,30]
[327548564,1716217841862,-113.11272804,0.0004,30]
[327548565,1716217841872,-1000.0,0.0004,30]
[327548566,1716217841881,-1000.0,0.0004,30]
[327548567,1716217841892,-1000.0,0.0004,30]
[327548568,1716217841902,-1000.0,0.0004,30]
[327548569,1716217841910,-471.01635114,0.0004,30]
[327548570,1716217841922,-528.98364886,0.0004,30]
[327548571,1716217841932,-233.70819527,0.00040029,30]
[327548572,1716217841941,-233.70819527,0.00040597,30]
[327548573,1716217841950,-600.0,0.000408,2]
[327548574,1716217841960,-233.70819527,0.00040846,30]
[327548575,1716217841969,-233.70819527,0.00040977,30]
[327548576,1716217841978,-1000.0,0.00041,41]
[327548577,1716217841987,-1000.0,0.00041,9]
[327548578,1716217841997,-1000.0,0.00041095,30]
[327548579,1716217842006,-359.00511508,0.00041096,31]
[327548580,1716217842015,-600.0,0.00041225,2]
[327548581,1716217842025,-1452.80209204,0.000413,11]
[327548582,1716217842034,-1452.94721261,0.000413,11]
[327548583,1716217842043,-1000.0,0.000415,9]
[327548584,1716217842052,-1000.0,0.000415,9]
[327548585,1716217842062,-1000.0,0.000415,9]
[327548586,1716217842071,-1000.0,0.000415,9]
[327548587,1716217842081,-1000.0,0.000415,9]
[327548588,1716217842090,-1000.0,0.000415,9]
[327548589,1716217842099,-1000.0,0.000415,9]
[327548590,1716217842109,-1000.0,0.000415,9]
[327548591,1716217842120,-1000.0,0.00041643,31]
[327548592,1716217842131,-600.0,0.0004165,2]
[327548593,1716217842140,-150.4,0.00041686,30]
[327548594,1716217842150,-233.70819527,0.00041747,30]
[327548595,1716217842160,-1000.0,0.00042,42]
[327548596,1716217842169,-9912.16540742,0.00042,40]
[327548597,1716217842417,-87.83459258,0.00042,40]
[327548598,1716217842426,-1000.0,0.00042,9]
[327548599,1716217842436,-1000.0,0.00042,9]
[327548600,1716217842445,-600.0,0.00042075,2]
[327548601,1716217842454,-233.70819527,0.00042159,30]
[327548602,1716217842463,-2100.49562793,0.00042188,2]
[327548603,1716217842475,-5187.55405897,0.00042188,2]
[327548604,1716217842485,-1000.0,0.00042191,32]
[327548605,1716217842494,-233.70819527,0.00042465,30]
[327548606,1716217842503,-2945.84810642,0.000425,3]
[327548607,1716217842512,-6814.57190321,0.000425,30]
[327548649,1716217846332,-916.01703464,0.000425,30]
[327548651,1716217846344,-26595.89997166,0.000425,30]
[327548652,1716217846356,-1110.33389946,0.000425,30]
[327548653,1716217846368,-5161.0,0.000425,30]
[327548702,1716218613353,962.4102102,9.999e-05,2]
[327548704,1716218677811,273.37336231,9.9e-05,2]
[327548705,1716218686269,273.37336231,9.9e-05,2]
[327548706,1716218693378,3631.20230829,9.999e-05,2]
[327548707,1716218695493,273.37336231,9.9e-05,2]
[327548708,1716218703438,273.37336231,9.9e-05,2]
[327548709,1716218705381,3631.20230829,9.999e-05,2]
[327548710,1716218711675,273.37336231,9.9e-05,2]
[327548711,1716218720204,273.37336231,9.9e-05,2]
[327548712,1716218721393,3631.20230829,9.9e-05,2]
[327548713,1716218729889,273.37336231,9.9e-05,2]
[327548714,1716218737890,273.37336231,9.9e-05,2]
[327548715,1716218745204,-155.74076066,0.0001864,2]
[327548716,1716218745392,3631.20230829,9.9e-05,2]
[327548717,1716218746073,273.37336231,9.9e-05,2]
[327548718,1716218763416,379.08691335,9.9e-05,2]
[327548720,1716218850113,-2141.31902417,0.00018637,2]
[327548751,1716219035787,-1515.7848841,0.0001836,2]
[327548753,1716219035797,-1103.13108595,0.0001854,2]
[327548755,1716219035807,-11056.52493755,0.00018631,2]
[327548757,1716219035817,-12048.13857542,0.00018632,2]
[327548759,1716219035828,-20788.11042619,0.00018634,2]
[327548761,1716219035838,-9690.04461738,0.0001864,2]
[327548764,1716219035861,-7198.69203915,0.0001864,2]
[327548865,1716219038722,-1100.11995917,0.0001864,2]
[327549025,1716219042958,-288.19333919,0.0001864,2]
[327549027,1716219042971,-291.87616228,0.0001864,2]
[327549029,1716219042984,-999.9933705,0.0001864,2]
[327549030,1716219042998,-5175.33975167,0.0001864,2]
[327549031,1716219043007,-489.37899657,0.00019178,2]
[327549032,1716219043017,-455.40902301,0.00019642,2]
[327549033,1716219043027,-183.73123692,0.00019741,2]
[327549034,1716219043037,-1885.8334935,0.0001984,2]
[327549035,1716219043047,-1350.72680674,0.0001984,2]
[327549036,1716219043056,-155.02186096,0.0001984,2]
[327549037,1716219043067,-151.94,0.0001999,3]
[327549038,1716219043077,-455.87,0.0001999,3]
[327549039,1716219043087,-4744.36843484,0.0002,2]
[327549088,1716219044699,-1025.8805,0.0002,2]
[327549089,1716219044711,-6742.91932512,0.0002,2]
[327549090,1716219044722,-319.91534022,0.0002,2]
[327549091,1716219044733,-7875.96584234,0.0002,2]
[327549092,1716219044745,-1000.0,0.0002,2]
[327549112,1716219047649,-960.56859885,0.00019999,2]
[327549113,1716219047659,-2655.83565301,0.0002,2]
[327549114,1716219059131,253.49152147,9.999e-05,2]
[327549115,1716219059160,2472.28434405,9.999e-05,2]
[327549123,1716219161418,523.55614149,9.999e-05,2]
[327549124,1716219225211,371.12891802,9.999e-05,2]
[327549126,1716219286659,492.91490697,9.999e-05,2]
[327549132,1716219411734,515.71861679,9.999e-05,2]
[327549149,1716219948186,-184.35470147,0.00017228,2]
[327549150,1716220026099,-10510.59464911,0.00017224,2]
[327549151,1716220026119,-12048.13857542,0.00017225,2]
[327549152,1716220026140,-3063.09240567,0.00017226,2]
[327549153,1716220026162,-10443.93675484,0.00017236,2]
[327549154,1716220044106,-6851.84807003,0.00017236,2]
[327549155,1716220049111,-204.41188978,0.00017236,2]
[327549160,1716220168102,-1459.34974133,0.00017236,2]
[327549206,1716220233644,-21.69018809,0.00017136,2]
[327549209,1716220233661,-1256.12090635,0.00017136,2]
[327549241,1716220238664,-19411.72908144,0.00017136,2]
[327549243,1716220238674,-5940.45354402,0.00017236,2]
[327549245,1716220238684,-13294.6592765,0.00017247,2]
[327549247,1716220238693,-183.7312369,0.00017329,2]
[327549249,1716220238703,-12048.13857542,0.00018388,2]
[327549251,1716220238713,-492.81389365,0.00018389,2]
[327549253,1716220238722,-156.86914844,0.00018389,2]
[327549255,1716220238731,-1483.2339554,0.00018389,2]
[327549257,1716220238740,-306.555685,0.0001839,2]
[327549258,1716220238750,-183.7312369,0.00018489,2]
[327549259,1716220238759,-282.79519979,0.00018637,2]
[327549260,1716220238769,-987.17490279,0.00018637,2]
[327549261,1716220238778,-4307.65354438,0.00018637,2]
[327549262,1716220238788,-4579.8151325,0.00018829,2]
[327549263,1716220238797,-340.6219983,0.00019041,2]
[327549264,1716220238806,-253.49152147,0.00019178,2]
[327549265,1716220238815,-500.0,0.00019178,2]
[327549266,1716220238824,-587.22466664,0.00019178,2]
[327549268,1716220238834,-183.7312369,0.0001965,2]
[327549270,1716220238843,-3863.5416846,0.00019804,2]
[327549271,1716220238852,-183.9,0.00019989,3]
[327549273,1716220238861,-153.25,0.0001999,3]
[327549274,1716220238870,-459.78,0.0001999,3]
[327549276,1716220238879,-11307.68496527,0.00019998,2]
[327549278,1716220238889,-367.3592041,0.00019998,2]
[327549279,1716220238900,-835.50091713,0.00019998,2]
[327549281,1716220238909,-1043.25678867,0.00019998,2]
[327549283,1716220238918,-194.45514723,0.00019998,2]
[327549284,1716220238927,-1506.10072357,0.00019998,2]
[327549285,1716220238937,-1863.39918763,0.00019998,2]
[327549287,1716220238947,-1082.37989948,0.00019998,2]
[327549288,1716220238956,-606.01121957,0.00019999,2]
[327549290,1716220238966,-192.55195474,0.00019999,2]
[327549291,1716220238975,-36695.33348681,0.0002,2]
[327549292,1716220238985,-7979.24717125,0.00020705,2]
[327549293,1716220238994,-183.7312369,0.0002081,2]
[327549294,1716220239004,-5194.83085454,0.00020907,2]
[327549295,1716220239012,-292.18251501,0.0002091,2]
[327549296,1716220239022,-2679.28011289,0.0002091,2]
[327549297,1716220239031,-1433.28368706,0.0002091,2]
[327549298,1716220239041,-2104.67306584,0.0002091,2]
[327549299,1716220239051,-1871.65293543,0.0002091,3]
[327549300,1716220239061,-4180.0168197,0.00020911,2]
[327549301,1716220239070,-630.29029806,0.00020912,2]
[327549302,1716220239081,-1304.17144463,0.00020912,2]
[327549303,1716220239091,-486.46078506,0.00020912,2]
[327549304,1716220239101,-215.4481127,0.00020912,2]
[327549305,1716220239111,-5588.31739252,0.00020913,2]
[327549306,1716220239121,-150.0,0.00021291,3]
[327549307,1716220239131,-306.5,0.0002136,3]
[327549308,1716220239143,-209.959878,0.00024384,2]
[327549309,1716220239153,-162.916443,0.00024384,2]
[327549310,1716220239164,-621.44756373,0.00026995,2]
[327549311,1716220239174,-9746.36,0.0002896,3]
[327549312,1716220239184,-12069.69118517,0.00029,30]
[327549313,1716220239195,-464.09985769,0.0003,30]
[327549314,1716220239204,-308.79766779,0.0003,4]
[327549315,1716220239215,-162.916443,0.00033045,2]
[327549316,1716220239224,-164.62741921,0.000334,14]
[327549317,1716220239234,-155.80546353,0.00033522,7]
[327549318,1716220239244,-155.80546353,0.00033743,7]
[327549319,1716220239254,-1716.59613572,0.0003457,3]
[327549320,1716220239264,-49148.53930358,0.0003457,2]
[327549321,1716220239274,-151.0,0.0003457,2]
[327549322,1716220239284,-151.0,0.0003457,2]
[327549323,1716220239294,-151.0,0.0003457,2]
[327549324,1716220239305,-151.0,0.0003457,2]
[327549325,1716220239315,-151.0,0.0003457,2]
[327549326,1716220239325,-231.625591,0.0003457,2]
[327549327,1716220239335,-151.0,0.0003457,2]
[327549328,1716220239344,-231.625591,0.0003457,2]
[327549329,1716220239358,-151.0,0.0003457,2]
[327549330,1716220239368,-151.0,0.0003457,2]
[327549331,1716220239377,-151.0,0.0003457,2]
[327549332,1716220239387,-151.0,0.0003457,2]
[327549333,1716220239400,-275.087598,0.0003457,2]
[327549334,1716220239410,-275.087598,0.0003457,2]
[327549335,1716220239420,-151.0,0.0003457,2]
[327549336,1716220239430,-151.0,0.0003457,2]
[327549337,1716220239439,-2342.646368,0.0003457,2]
[327549338,1716220239450,-151.0,0.0003457,2]
[327549339,1716220239459,-152.738939,0.0003457,2]
[327549340,1716220239468,-2342.646368,0.0003457,2]
[327549341,1716220239478,-151.0,0.0003457,2]
[327549342,1716220239488,-1334.57301,0.0003457,2]
[327549343,1716220239497,-1334.57301,0.0003457,2]
[327549344,1716220239506,-151.0,0.0003457,2]
[327549345,1716220239516,-1840.763516,0.0003457,2]
[327549346,1716220239526,-1840.763516,0.0003457,2]
[327549347,1716220239535,-864.181179,0.0003457,2]
[327549348,1716220239545,-864.181179,0.0003457,2]
[327549349,1716220239554,-151.0,0.0003457,2]
[327549350,1716220239564,-151.0,0.0003457,2]
[327549351,1716220239574,-527.250587,0.0003457,2]
[327549352,1716220239584,-151.0,0.0003457,2]
[327549353,1716220239593,-527.250587,0.0003457,2]
[327549354,1716220239603,-160.0,0.0003457,13]
[327549355,1716220239612,-155.80546353,0.00034743,7]
[327549356,1716220239621,-179.0,0.00034867,14]
[327549357,1716220239631,-886.41112912,0.00035,2]
[327549358,1716220239640,-1331.73525103,0.00035,7]
[327549359,1716220239651,-1331.73525103,0.00035,7]
[327549360,1716220239660,-151.0,0.00035616,2]
[327549361,1716220239670,-231.625591,0.00035616,2]
[327549362,1716220239680,-231.625591,0.00035616,2]
[327549363,1716220239689,-151.0,0.00035616,2]
[327549364,1716220239699,-151.0,0.00035616,2]
[327549365,1716220239708,-151.0,0.00035616,2]
[327549366,1716220239719,-151.0,0.00035616,2]
[327549367,1716220239728,-544.54318873,0.00035616,2]
[327549368,1716220239746,-319.63799027,0.00035616,2]
[327549369,1716220239756,-305.80917518,0.00035616,2]
[327549370,1716220239768,-558.37200382,0.00035616,2]
[327549371,1716220239777,-151.0,0.00035616,2]
[327549372,1716220239787,-527.250587,0.00035616,2]
[327549373,1716220239799,-151.0,0.00035616,2]
[327549374,1716220239808,-527.250587,0.00035616,2]
[327549375,1716220239817,-15217.31,0.00035616,3]
[327549376,1716220239828,-155.80546353,0.00035864,7]
[327549377,1716220239838,-1707.76234616,0.00037,2]
[327549378,1716220239848,-155.80546353,0.00037088,7]
[327549379,1716220239857,-1104.481755,0.000371,2]
[327549380,1716220239867,-1104.481755,0.000371,2]
[327549381,1716220239876,-1331.73525103,0.000371,7]
[327549382,1716220239885,-1331.73525103,0.000371,7]
[327549383,1716220239898,-155.80546353,0.00038087,7]
[327549384,1716220239908,-965.23970017,0.00038407,2]
[327549385,1716220239917,-1452.80209204,0.000392,11]
[327549386,1716220239927,-1452.80209204,0.000392,11]
[327549387,1716220239937,-1000.0,0.00039821,2]
[327549388,1716220239947,-151.0,0.00039821,2]
[327549389,1716220239956,-2342.646368,0.00039821,2]
[327549390,1716220239966,-2342.646368,0.00039821,2]
[327549391,1716220239976,-151.0,0.00039821,2]
[327549392,1716220239985,-1840.763516,0.00039821,2]
[327549393,1716220239995,-1840.763516,0.00039821,2]
[327549394,1716220240006,-155.80546353,0.00039842,7]
[327549395,1716220240016,-150.0,0.0003985,39]
[327549396,1716220240026,-1000.0,0.00039929,2]
[327549397,1716220240036,-275.087598,0.00039929,2]
[327549398,1716220240046,-275.087598,0.00039929,2]
[327549399,1716220240056,-151.0,0.00039929,2]
[327549400,1716220240065,-151.0,0.00039929,2]
[327549401,1716220240075,-1334.57301,0.00039929,2]
[327549402,1716220240085,-1334.57301,0.00039929,2]
[327549403,1716220240094,-208.759003,0.00039929,2]
[327549404,1716220240103,-208.759003,0.00039929,2]
[327549405,1716220240113,-165.026342,0.00039929,2]
[327549406,1716220240225,-151.0,0.00039929,2]
[327549407,1716220240235,-165.026342,0.00039929,2]
[327549408,1716220240245,-151.0,0.00039929,2]
[327549409,1716220240255,-1466.67827902,0.0004,30]
[327549410,1716220240264,-600.0,0.000408,2]
[327549411,1716220240274,-150.4,0.00040926,15]
[327549412,1716220240283,-1000.0,0.00041095,30]
[327549413,1716220240293,-1000.0,0.00041095,31]
[327549414,1716220240303,-1000.0,0.00041095,32]
[327549415,1716220240312,-1000.0,0.00041095,33]
[327549416,1716220240322,-314.33,0.00041095,34]
[327549417,1716220240332,-153.85933503,0.00041096,31]
[327549419,1716220240341,-600.0,0.00041225,2]
[327549421,1716220240351,-1452.80209204,0.000413,11]
[327549424,1716220240365,-1452.80209204,0.000413,11]
[327549426,1716220240375,-150.4,0.00041632,30]
[327549428,1716220240384,-600.0,0.0004165,2]
[327549430,1716220240395,-162.916443,0.00041707,2]
[327549431,1716220240405,-151.0,0.00041758,7]
[327549433,1716220240427,-151.0,0.00041758,7]
[327549434,1716220240439,-151.0,0.00041758,7]
[327549435,1716220240450,-384.33301985,0.00041766,3]
[327549436,1716220240460,-151.0,0.00041766,7]
[327549437,1716220240470,-151.0,0.00041766,7]
[327549438,1716220240481,-204.3998579,0.00041808,2]
[327549439,1716220240491,-593.34834519,0.00042,5]
[327549440,1716220240502,-864.181179,0.00042,7]
[327549441,1716220240512,-864.181179,0.00042,7]
[327549442,1716220240523,-151.0,0.00042,7]
[327549443,1716220240533,-527.250587,0.00042,7]
[327549444,1716220240544,-247.186595,0.00042,7]
[327549445,1716220240554,-527.250587,0.00042,7]
[327549446,1716220240564,-600.0,0.00042075,2]
[327549447,1716220240575,-34663.92503092,0.000424,15]
[327549448,1716220240585,-151.0,0.000424,7]
[327549449,1716220240595,-215.759591,0.000424,2]
[327549450,1716220240605,-215.759591,0.000424,2]
[327549451,1716220240615,-1104.481755,0.000424,7]
[327549452,1716220240626,-1104.481755,0.000424,7]
[327549453,1716220240636,-151.0,0.000424,7]
[327549454,1716220240647,-151.0,0.000424,7]
[327549456,1716220240656,-153.740568,0.000424,7]
[327549457,1716220240667,-151.0,0.000424,7]
[327549458,1716220240678,-151.0,0.000424,7]
[327549459,1716220240688,-231.625591,0.000424,7]
[327549460,1716220240697,-151.692598,0.000424,7]
[327549461,1716220240707,-231.625591,0.000424,7]
[327549462,1716220240717,-151.0,0.000424,7]
[327549463,1716220240728,-151.0,0.000424,7]
[327549464,1716220240739,-151.0,0.000424,7]
[327549465,1716220240749,-151.0,0.000424,7]
[327549467,1716220240759,-275.087598,0.000424,7]
[327549469,1716220240769,-275.087598,0.000424,7]
[327549471,1716220240779,-151.0,0.000424,7]
[327549472,1716220240789,-151.0,0.000424,7]